fUSD/lending_fUSD_20260601
["ID","MTS","AMOUNT","RATE_DAILY","PERIOD"]
[423696395,1780315848000,-446.0,0.00032603,10]
[423696403,1780315848000,-500.0,0.00032603,10]
[423696408,1780315848000,-500.0,0.00032603,10]
[423696404,1780315848000,-338.00061309,0.00032603,10]
[423696401,1780315848000,-500.0,0.00032603,10]
[423696405,1780315848000,-541.0,0.00032603,10]
[423696410,1780315848000,-500.0,0.00032603,10]
[423696411,1780315848000,-500.0,0.00032603,10]
[423696412,1780315848000,-541.0,0.00032603,10]
[423696413,1780315848000,-500.0,0.00032603,10]
[423696409,1780315848000,-541.0,0.00032603,10]
[423696402,1780315848000,-500.0,0.00032603,10]
[423696469,1780315849000,-917.8775011,0.00032675,2]
[423696473,1780315849000,-1313.13113362,0.00032677,2]
[423696468,1780315849000,-1319.85817924,0.00032669,2]
[423696475,1780315849000,-497.63538652,0.00032677,2]
[423696485,1780315849000,-295.0,0.00032705,30]
[423696486,1780315849000,-538.0,0.00032705,30]
[423696474,1780315849000,-16615.87367539,0.00032677,2]
[423696476,1780315849000,-150.0,0.00032684,7]
[423696472,1780315849000,-212.88752424,0.00032677,2]
[423696477,1780315849000,-1012.00437477,0.00032688,2]
[423696483,1780315849000,-166.0,0.00032705,30]
[423696480,1780315849000,-189.0,0.00032705,30]
[423696479,1780315849000,-264.96,0.000327,30]
[423696481,1780315849000,-161.52267832,0.00032705,30]
[423696482,1780315849000,-1511.0,0.00032705,30]
[423696484,1780315849000,-756.0,0.00032705,30]
[423696488,1780315849000,-341.46519996,0.0003273,7]
[423696489,1780315849000,-150.0,0.00032732,7]
[423696467,1780315849000,-1404.66411259,0.00032669,2]
[423696487,1780315849000,-317.0,0.00032705,30]
[423696478,1780315849000,-341.46519996,0.00032695,7]
[423696470,1780315849000,-901.42632358,0.00032675,2]
[423696453,1780315849000,-150.0,0.00032616,7]
[423696465,1780315849000,-905.52855946,0.00032669,2]
[423696490,1780315849000,-150.0,0.00032737,7]
[423696448,1780315849000,-278.88036096,0.00032603,10]
[423696445,1780315849000,-541.0,0.00032603,10]
[423696447,1780315849000,-150.0,0.00032603,10]
[423696451,1780315849000,-500.0,0.00032603,10]
[423696446,1780315849000,-552.0,0.00032603,10]
[423696449,1780315849000,-500.0,0.00032603,10]
[423696450,1780315849000,-500.0,0.00032603,10]
[423696444,1780315849000,-541.0,0.00032603,10]
[423696452,1780315849000,-500.0,0.00032603,10]
[423696471,1780315849000,-1063.99128467,0.00032675,2]
[423696454,1780315849000,-341.46519996,0.00032623,7]
[423696458,1780315849000,-150.0,0.00032661,7]
[423696456,1780315849000,-150.0,0.0003264,7]
[423696457,1780315849000,-341.46519996,0.00032659,7]
[423696461,1780315849000,-916.86693665,0.00032669,2]
[423696460,1780315849000,-1379.48204082,0.00032669,2]
[423696462,1780315849000,-936.40999809,0.00032669,2]
[423696459,1780315849000,-150.0,0.00032667,7]
[423696464,1780315849000,-975.25424462,0.00032669,2]
[423696466,1780315849000,-933.34922882,0.00032669,2]
[423696463,1780315849000,-1198.52349283,0.00032669,2]
[423696455,1780315849000,-150.0,0.00032635,7]
[423696491,1780315849000,-331.0,0.0003274,30]
[423696499,1780315849000,-1135.12144905,0.00032767,2]
[423696496,1780315849000,-1015.01595543,0.00032742,2]
[423696532,1780315849000,-502.32871737,0.00032776,2]
[423696523,1780315849000,-500.0,0.00032776,120]
[423696524,1780315849000,-227.67157907,0.00032776,120]
[423696525,1780315849000,-500.0,0.00032776,120]
[423696521,1780315849000,-541.09,0.00032776,30]
[423696522,1780315849000,-500.0,0.00032776,120]
[423696529,1780315849000,-500.0,0.00032776,2]
[423696526,1780315849000,-150.0,0.00032776,20]
[423696527,1780315849000,-500.0,0.00032776,2]
[423696531,1780315849000,-500.0,0.00032776,2]
[423696528,1780315849000,-500.0,0.00032776,2]
[423696530,1780315849000,-500.0,0.00032776,2]
[423696533,1780315849000,-500.0,0.00032776,120]
[423696535,1780315849000,-500.0,0.00032776,2]
[423696536,1780315849000,-500.0,0.00032776,2]
[423696493,1780315849000,-434.0,0.0003274,30]
[423696534,1780315849000,-500.0,0.00032776,120]
[423696537,1780315849000,-500.0,0.00032776,2]
[423696538,1780315849000,-285.78148871,0.00032776,2]
[423696541,1780315849000,-940399.09566318,0.00032777,2]
[423696540,1780315849000,-183.0,0.00032777,2]
[423696520,1780315849000,-541.09,0.00032776,30]
[423696519,1780315849000,-541.09,0.00032776,30]
[423696539,1780315849000,-543.92349054,0.00032776,120]
[423696517,1780315849000,-541.09,0.00032776,30]
[423696516,1780315849000,-541.09,0.00032776,30]
[423696494,1780315849000,-822.0,0.0003274,30]
[423696492,1780315849000,-401.0,0.0003274,30]
[423696497,1780315849000,-150.0,0.00032763,7]
[423696495,1780315849000,-165.0,0.0003274,30]
[423696508,1780315849000,-500.0,0.00032776,120]
[423696504,1780315849000,-500.0,0.00032776,120]
[423696500,1780315849000,-500.0,0.00032776,120]
[423696507,1780315849000,-500.0,0.00032776,120]
[423696505,1780315849000,-500.0,0.00032776,120]
[423696506,1780315849000,-500.0,0.00032776,120]
[423696503,1780315849000,-500.0,0.00032776,120]
[423696509,1780315849000,-500.0,0.00032776,120]
[423696502,1780315849000,-500.0,0.00032776,120]
[423696501,1780315849000,-500.0,0.00032776,120]
[423696510,1780315849000,-500.0,0.00032776,120]
[423696513,1780315849000,-541.09,0.00032776,30]
[423696515,1780315849000,-541.09,0.00032776,30]
[423696514,1780315849000,-541.09,0.00032776,30]
[423696512,1780315849000,-541.09,0.00032776,30]
[423696518,1780315849000,-541.09,0.00032776,30]
[423696498,1780315849000,-341.46519996,0.00032766,7]
[423696511,1780315849000,-541.09,0.00032776,30]
[423696553,1780315851000,-69.08632679,0.00029299,7]
[423696548,1780315851000,-481.98285537,0.0002863,30]
[423696549,1780315851000,-624.9,0.00028797,7]
[423696550,1780315851000,-624.9,0.00028964,2]
[423696554,1780315851000,-612.03929944,0.00029467,2]
[423696543,1780315851000,-439.0,0.00021644,2]
[423696546,1780315851000,-439.0,0.00021644,2]
[423696544,1780315851000,-439.0,0.00021644,2]
[423696545,1780315851000,-685.0,0.00021644,2]
[423696542,1780315851000,-1230.09181537,0.00012644,2]
[423696551,1780315851000,-624.9,0.00029132,30]
[423696547,1780315851000,-142.91714463,0.0002863,30]
[423696552,1780315851000,-555.81367321,0.00029299,7]
[423696556,1780315851000,-686.4612352,0.00021644,2]
[423696559,1780315851000,-150.0,0.00029534,2]
[423696569,1780315851000,-1243.5804,0.00032777,2]
[423696568,1780315851000,-346.89234582,0.00032777,2]
[423696560,1780315851000,-624.9,0.00029634,30]
[423696566,1780315851000,-283.39215301,0.00032777,2]
[423696565,1780315851000,-4148.72028593,0.00032777,2]
[423696564,1780315851000,-1540.21,0.000326,14]
[423696567,1780315851000,-9950.83955565,0.00032777,2]
[423696557,1780315851000,-1045.0,0.00022,7]
[423696555,1780315851000,-439.0,0.00021644,2]
[423696561,1780315851000,-150.0,0.00031011,2]
[423696562,1780315851000,-1540.21,0.000324,14]
[423696563,1780315851000,-150.0,0.00032562,2]
[423696558,1780315851000,-12.86070056,0.00029467,2]
[423696570,1780315852000,-439.0,0.00021644,2]
[423696572,1780315852000,-160.0,0.000274,10]
[423696571,1780315852000,-439.0,0.00021644,2]
[423696583,1780315852000,-396.52,0.00032777,2]
[423696577,1780315852000,-627.0,0.00029467,10]
[423696575,1780315852000,-251.99,0.0002863,2]
[423696573,1780315852000,-160.0,0.00028,7]
[423696578,1780315852000,-70192.26434929,0.00032777,2]
[423696574,1780315852000,-151.0,0.0002863,2]
[423696579,1780315852000,-251.99,0.00028693,30]
[423696587,1780315852000,-251.99,0.00028725,2]
[423696586,1780315852000,-141.43504316,0.0002863,30]
[423696584,1780315852000,-720.38,0.0002863,30]
[423696588,1780315852000,-36460.6977115,0.00032777,2]
[423696581,1780315852000,-349.31101365,0.00032777,2]
[423696576,1780315852000,-251.99,0.00028661,7]
[423696580,1780315852000,-0.45109912,0.00032777,2]
[423696585,1780315852000,-349.20495684,0.0002863,30]
[423696582,1780315852000,-16621.50540335,0.00032777,2]
[423696589,1780315886000,500.0,0.00028735,120]
[423696591,1780316028000,1165.332791,0.00023091,120]
[423696592,1780316035000,398.78114331,9.846e-05,3]
[423696593,1780316036000,2000.0,0.0003013,120]
[423696594,1780316040000,200.826153,0.00023091,120]
[423696595,1780316065000,2000.0,0.0003013,120]
[423696596,1780316088000,4749.79146091,0.0003013,120]
[423696597,1780316114000,-2166.83720199,8.247e-05,2]
[423696598,1780316127000,-150.0,8.329e-05,2]
[423696600,1780316167000,-500.0,8.329e-05,2]
[423696601,1780316182000,-154.0,8.411e-05,2]
[423696602,1780316184000,617.39,0.0002926,120]
[423696603,1780316220000,-250.0,8.37e-05,2]
[423696606,1780316234000,-250.0,8.763e-05,2]
[423696605,1780316234000,500.0,0.00028481,120]
[423696604,1780316234000,500.0,0.0002926,120]
[423696608,1780316273000,-150.0,8.887e-05,2]
[423696609,1780316327000,-290.0,8.975e-05,2]
[423696611,1780316380000,-500.0,8.981e-05,2]
[423696612,1780316387000,-200.0,0.000121,30]
[423696613,1780316434000,-3950.00495115,9.031e-05,2]
[423696618,1780316435000,-300.0,9.045e-05,2]
[423696614,1780316435000,-164.55,8.898e-05,2]
[423696616,1780316435000,-392.0,9.045e-05,2]
[423696617,1780316435000,-300.0,9.045e-05,2]
[423696615,1780316435000,-300.0,9.045e-05,2]
[423696625,1780316435000,-773.55817806,9.047e-05,2]
[423696620,1780316435000,-1200.0,9.045e-05,2]
[423696623,1780316435000,-517.10632246,9.047e-05,2]
[423696621,1780316435000,-185.61277784,9.046e-05,2]
[423696622,1780316435000,-150.0,9.046e-05,2]
[423696624,1780316435000,-417.17272164,9.047e-05,2]
[423696619,1780316435000,-300.0,9.045e-05,2]
[423696628,1780316436000,-742.12353236,9.047e-05,2]
[423696627,1780316436000,-2211.66080899,9.047e-05,2]
[423696626,1780316436000,-2046.21565865,9.047e-05,2]
[423696630,1780316438000,-2071.641142,9.047e-05,2]
[423696631,1780316438000,-1584.188858,9.049e-05,2]
[423696629,1780316438000,-1344.17,8.842e-05,2]
[423696632,1780316439000,-1963.211142,9.049e-05,2]
[423696634,1780316439000,-813.69959927,9.072e-05,2]
[423696636,1780316439000,-300.0,9.072e-05,2]
[423696637,1780316439000,-1217.14,9.106e-05,2]
[423696633,1780316439000,-193.0,9.072e-05,2]
[423696638,1780316439000,-12.94925873,9.162e-05,2]
[423696635,1780316439000,-500.0,9.072e-05,2]
[423696640,1780316440000,-2000.0,9.192e-05,2]
[423696642,1780316440000,-148.4096645,9.639e-05,2]
[423696641,1780316440000,-2614.53959423,9.47e-05,2]
[423696639,1780316440000,-237.05074127,9.162e-05,2]
[423696644,1780316441000,-250.0,9.639e-05,2]
[423696643,1780316441000,-351.5903355,9.639e-05,2]
[423696645,1780316441000,-165.75189662,9.639e-05,2]
[423696646,1780316441000,-4232.65776788,9.647e-05,2]
[423696647,1780316487000,-300.0,9.646e-05,2]
[423696648,1780316509000,-150.0,9.646e-05,2]
[423696652,1780316509000,-500.0,9.646e-05,2]
[423696650,1780316509000,-500.0,9.646e-05,2]
[423696649,1780316509000,-300.0,9.646e-05,2]
[423696654,1780316509000,-500.0,9.646e-05,2]
[423696651,1780316509000,-500.0,9.646e-05,2]
[423696653,1780316509000,-500.0,9.646e-05,2]
[423696657,1780316509000,-500.0,9.646e-05,2]
[423696656,1780316509000,-500.0,9.646e-05,2]
[423696659,1780316509000,-50.0,9.646e-05,2]
[423696658,1780316509000,-500.0,9.646e-05,2]
[423696655,1780316509000,-500.0,9.646e-05,2]
[423696665,1780316514000,-500.0,9.646e-05,2]
[423696663,1780316514000,-500.0,9.646e-05,2]
[423696664,1780316514000,-500.0,9.646e-05,2]
[423696660,1780316514000,-450.0,9.646e-05,2]
[423696662,1780316514000,-500.0,9.646e-05,2]
[423696661,1780316514000,-500.0,9.646e-05,2]
[423696671,1780316515000,-450.0,9.646e-05,2]
[423696669,1780316515000,-500.0,9.646e-05,2]
[423696668,1780316515000,-500.0,9.646e-05,2]
[423696667,1780316515000,-500.0,9.646e-05,2]
[423696666,1780316515000,-500.0,9.646e-05,2]
[423696670,1780316515000,-50.0,9.646e-05,2]
[423696672,1780316515000,-500.0,9.646e-05,2]
[423696673,1780316515000,-500.0,9.646e-05,2]
[423696674,1780316515000,-500.0,9.646e-05,2]
[423696677,1780316515000,-500.0,9.646e-05,2]
[423696676,1780316515000,-500.0,9.646e-05,2]
[423696679,1780316515000,-500.0,9.646e-05,2]
[423696678,1780316515000,-500.0,9.646e-05,2]
[423696681,1780316515000,-50.0,9.646e-05,2]
[423696680,1780316515000,-500.0,9.646e-05,2]
[423696675,1780316515000,-500.0,9.646e-05,2]
[423696682,1780316516000,-450.0,9.646e-05,2]
[423696684,1780316516000,-500.0,9.646e-05,2]
[423696683,1780316516000,-500.0,9.646e-05,2]
[423696685,1780316517000,-500.0,9.646e-05,2]
[423696686,1780316517000,-500.0,9.646e-05,2]
[423696687,1780316517000,-500.0,9.646e-05,2]
[423696688,1780316517000,-500.0,9.646e-05,2]
[423696690,1780316517000,-500.0,9.646e-05,2]
[423696692,1780316517000,-50.0,9.646e-05,2]
[423696691,1780316517000,-500.0,9.646e-05,2]
[423696689,1780316517000,-500.0,9.646e-05,2]
[423696703,1780316526000,-250.0,9.646e-05,2]
[423696702,1780316526000,-500.0,9.646e-05,2]
[423696701,1780316526000,-500.0,9.646e-05,2]
[423696700,1780316526000,-500.0,9.646e-05,2]
[423696699,1780316526000,-500.0,9.646e-05,2]
[423696698,1780316526000,-500.0,9.646e-05,2]
[423696695,1780316526000,-500.0,9.646e-05,2]
[423696697,1780316526000,-500.0,9.646e-05,2]
[423696696,1780316526000,-500.0,9.646e-05,2]
[423696694,1780316526000,-450.0,9.646e-05,2]
[423696693,1780316526000,-300.0,9.645e-05,2]
[423696707,1780316540000,-500.0,9.646e-05,2]
[423696706,1780316540000,-500.0,9.646e-05,2]
[423696704,1780316540000,-250.0,9.646e-05,2]
[423696705,1780316540000,-500.0,9.646e-05,2]
[423696708,1780316540000,-500.0,9.646e-05,2]
[423696713,1780316540000,-500.0,9.646e-05,2]
[423696709,1780316540000,-500.0,9.646e-05,2]
[423696711,1780316540000,-500.0,9.646e-05,2]
[423696714,1780316540000,-500.0,9.646e-05,2]
[423696712,1780316540000,-500.0,9.646e-05,2]
[423696710,1780316540000,-321.57831459,9.646e-05,2]
[423696715,1780316541000,-178.42168541,9.646e-05,2]
[423696722,1780316568000,-500.0,9.646e-05,2]
[423696721,1780316568000,-500.0,9.646e-05,2]
[423696720,1780316568000,-500.0,9.646e-05,2]
[423696718,1780316568000,-321.57831459,9.646e-05,2]
[423696719,1780316568000,-500.0,9.646e-05,2]
[423696726,1780316569000,-118.42168541,9.646e-05,2]
[423696725,1780316569000,-500.0,9.646e-05,2]
[423696724,1780316569000,-500.0,9.646e-05,2]
[423696723,1780316569000,-500.0,9.646e-05,2]
[423696727,1780316594000,-381.57831459,9.646e-05,2]
[423696728,1780316598000,500.0,0.00028481,120]
[423696729,1780316614000,361.78,0.00030082,120]
[423696730,1780316839000,500.0,0.00028481,120]
[423696731,1780316866000,500.0,0.00028481,120]
[423696735,1780316873000,-500.0,8.812e-05,2]
[423696733,1780316873000,-250.0,8.64e-05,2]
[423696732,1780316873000,-163.2,8.491e-05,2]
[423696734,1780316873000,-163.2,8.789e-05,2]
[423696736,1780316892000,-263.74,8.881e-05,2]
[423696737,1780316892000,-51.86,8.965e-05,2]
[423696738,1780316959000,-7000000.0,0.00039527,120]
[423696739,1780316963000,-377.99037908,8.965e-05,2]
[423696740,1780316963000,-1576423.31213422,0.00039527,120]
[423696741,1780316963000,-4508.2876,0.00039527,120]
[423696743,1780316963000,-4508.2876,0.00039527,120]
[423696744,1780316963000,-4508.2876,0.00039527,120]
[423696745,1780316963000,-4508.2876,0.00039527,120]
[423696742,1780316963000,-4508.2876,0.00039527,120]
[423696753,1780316964000,-500.0,0.00039527,120]
[423696746,1780316964000,-4508.2876,0.00039527,120]
[423696747,1780316964000,-4508.2881,0.00039527,120]
[423696749,1780316964000,-500.0,0.00039527,120]
[423696748,1780316964000,-10000.0,0.00039527,120]
[423696751,1780316964000,-231.04818978,0.00039527,120]
[423696750,1780316964000,-500.0,0.00039527,120]
[423696752,1780316964000,-500.0,0.00039527,120]
[423696755,1780316964000,-501.38741415,0.00039527,120]
[423696754,1780316964000,-500.0,0.00039527,120]
[423696756,1780316964000,-3162.35,0.00039527,120]
[423696757,1780316964000,-3162.35,0.00039527,120]
[423696758,1780316964000,-3162.35,0.00039527,120]
[423696759,1780316964000,-3162.35,0.00039527,120]
[423696760,1780316964000,-3162.35,0.00039527,120]
[423696761,1780316964000,-3162.35,0.00039527,120]
[423696762,1780316964000,-3162.35,0.00039527,120]
[423696763,1780316964000,-3162.35,0.00039527,120]
[423696764,1780316964000,-3162.35,0.00039527,120]
[423696770,1780316965000,-3162.35,0.00039527,120]
[423696771,1780316965000,-3162.35,0.00039527,120]
[423696768,1780316965000,-3162.35,0.00039527,120]
[423696772,1780316965000,-3162.35,0.00039527,120]
[423696766,1780316965000,-3162.35,0.00039527,120]
[423696767,1780316965000,-3162.35,0.00039527,120]
[423696765,1780316965000,-3162.35,0.00039527,120]
[423696769,1780316965000,-3162.35,0.00039527,120]
[423696773,1780316965000,-3162.35,0.00039527,120]
[423696779,1780316965000,-3162.37541248,0.00039527,120]
[423696774,1780316965000,-3162.35,0.00039527,120]
[423696775,1780316965000,-3162.35,0.00039527,120]
[423696782,1780316965000,-500.0,0.00039527,120]
[423696783,1780316965000,-500.0,0.00039527,120]
[423696780,1780316965000,-1494.0,0.00039527,120]
[423696784,1780316965000,-500.0,0.00039527,120]
[423696778,1780316965000,-3162.35,0.00039527,120]
[423696777,1780316965000,-3162.35,0.00039527,120]
[423696776,1780316965000,-3162.35,0.00039527,120]
[423696781,1780316965000,-500.0,0.00039527,120]
[423696790,1780316966000,-500.0,0.00039527,120]
[423696785,1780316966000,-500.0,0.00039527,120]
[423696787,1780316966000,-250.65,0.00039527,120]
[423696786,1780316966000,-500.0,0.00039527,120]
[423696789,1780316966000,-500.0,0.00039527,120]
[423696788,1780316966000,-3891.50693629,0.00039527,120]
[423696791,1780316966000,-500.0,0.00039527,120]
[423696793,1780316966000,-500.0,0.00039527,120]
[423696792,1780316966000,-500.0,0.00039527,120]
[423696795,1780316966000,-500.0,0.00039527,120]
[423696800,1780316966000,-500.0,0.00039527,120]
[423696801,1780316966000,-500.0,0.00039527,120]
[423696798,1780316966000,-500.0,0.00039527,120]
[423696802,1780316966000,-500.0,0.00039527,120]
[423696796,1780316966000,-500.0,0.00039527,120]
[423696797,1780316966000,-500.0,0.00039527,120]
[423696794,1780316966000,-500.0,0.00039527,120]
[423696799,1780316966000,-500.0,0.00039527,120]
[423696811,1780316967000,-2435.29,0.00039527,120]
[423696803,1780316967000,-500.0,0.00039527,120]
[423696805,1780316967000,-281.0,0.00039527,120]
[423696804,1780316967000,-500.0,0.00039527,120]
[423696807,1780316967000,-3220.0549,0.00039527,120]
[423696806,1780316967000,-20000.0,0.00039527,30]
[423696809,1780316967000,-2435.29,0.00039527,120]
[423696808,1780316967000,-153.95552726,0.00039527,120]
[423696810,1780316967000,-2435.29,0.00039527,120]
[423696821,1780316967000,-2435.29,0.00039527,120]
[423696812,1780316967000,-2435.29,0.00039527,120]
[423696814,1780316967000,-2435.29,0.00039527,120]
[423696815,1780316967000,-2435.29,0.00039527,120]
[423696816,1780316967000,-2435.29,0.00039527,120]
[423696817,1780316967000,-2435.29,0.00039527,120]
[423696818,1780316967000,-2435.29,0.00039527,120]
[423696819,1780316967000,-2435.29,0.00039527,120]
[423696820,1780316967000,-2435.29,0.00039527,120]
[423696813,1780316967000,-2435.29,0.00039527,120]
[423696828,1780316968000,-2435.29,0.00039527,120]
[423696826,1780316968000,-2435.29,0.00039527,120]
[423696825,1780316968000,-2435.29,0.00039527,120]
[423696827,1780316968000,-2435.29,0.00039527,120]
[423696824,1780316968000,-2435.29,0.00039527,120]
[423696822,1780316968000,-2435.29,0.00039527,120]
[423696823,1780316968000,-2435.29,0.00039527,120]
[423696829,1780316968000,-2435.29,0.00039527,120]
[423696835,1780316968000,-500.0,0.00039527,120]
[423696830,1780316968000,-2435.29,0.00039527,120]
[423696839,1780316968000,-14378.26974109,0.00039527,120]
[423696837,1780316968000,-1743.8,0.00039527,120]
[423696836,1780316968000,-498.91218314,0.00039527,120]
[423696831,1780316968000,-2435.29,0.00039527,120]
[423696838,1780316968000,-8118.04065931,0.00039527,120]
[423696832,1780316968000,-2435.37201497,0.00039527,120]
[423696833,1780316968000,-500.0,0.00039527,120]
[423696834,1780316968000,-554.3262,0.00039527,120]
[423696846,1780316969000,-500.0,0.00039527,120]
[423696840,1780316969000,-35778.48491878,0.00039527,120]
[423696841,1780316969000,-500.91394311,0.00039527,120]
[423696843,1780316969000,-500.0,0.00039527,120]
[423696842,1780316969000,-500.0,0.00039527,120]
[423696845,1780316969000,-500.0,0.00039527,120]
[423696844,1780316969000,-500.0,0.00039527,120]
[423696847,1780316969000,-500.0,0.00039527,120]
[423696849,1780316969000,-500.0,0.00039527,120]
[423696848,1780316969000,-500.0,0.00039527,120]
[423696850,1780316969000,-500.0,0.00039527,120]
[423696859,1780316969000,-500.0,0.00039527,120]
[423696856,1780316969000,-500.0,0.00039527,120]
[423696857,1780316969000,-500.0,0.00039527,120]
[423696855,1780316969000,-500.0,0.00039527,120]
[423696858,1780316969000,-237.70992581,0.00039527,120]
[423696852,1780316969000,-500.0,0.00039527,120]
[423696853,1780316969000,-500.0,0.00039527,120]
[423696851,1780316969000,-500.0,0.00039527,120]
[423696854,1780316969000,-500.0,0.00039527,120]
[423696866,1780316970000,-500.0,0.00039527,120]
[423696861,1780316970000,-500.0,0.00039527,120]
[423696860,1780316970000,-500.0,0.00039527,120]
[423696863,1780316970000,-500.0,0.00039527,120]
[423696862,1780316970000,-500.0,0.00039527,120]
[423696865,1780316970000,-500.0,0.00039527,120]
[423696864,1780316970000,-500.0,0.00039527,120]
[423696867,1780316970000,-500.0,0.00039527,120]
[423696868,1780316970000,-574.4242199,0.00039527,120]
[423696878,1780316970000,-1029.1,0.00039527,120]
[423696871,1780316970000,-2741.74863662,0.00039527,60]
[423696870,1780316970000,-568.97139124,0.00039527,120]
[423696873,1780316970000,-288.12,0.00039527,120]
[423696872,1780316970000,-2215.0,0.00039527,30]
[423696875,1780316970000,-1029.1,0.00039527,120]
[423696874,1780316970000,-457.33271508,0.00039527,120]
[423696876,1780316970000,-1029.1,0.00039527,120]
[423696877,1780316970000,-1029.1,0.00039527,120]
[423696879,1780316970000,-1029.1,0.00039527,120]
[423696869,1780316970000,-500.0,0.00039527,120]
[423696887,1780316971000,-1029.1,0.00039527,120]
[423696884,1780316971000,-1029.1,0.00039527,120]
[423696885,1780316971000,-1029.1,0.00039527,120]
[423696886,1780316971000,-1029.1,0.00039527,120]
[423696883,1780316971000,-1029.1,0.00039527,120]
[423696880,1780316971000,-1029.1,0.00039527,120]
[423696881,1780316971000,-1029.1,0.00039527,120]
[423696882,1780316971000,-1029.1,0.00039527,120]
[423696888,1780316971000,-1029.1,0.00039527,120]
[423696892,1780316971000,-1029.1,0.00039527,120]
[423696890,1780316971000,-1029.1,0.00039527,120]
[423696889,1780316971000,-1029.1,0.00039527,120]
[423696896,1780316971000,-1029.1,0.00039527,120]
[423696897,1780316971000,-1029.1,0.00039527,120]
[423696894,1780316971000,-1029.1,0.00039527,120]
[423696899,1780316971000,-23587.91727137,0.00039527,120]
[423696893,1780316971000,-1029.1,0.00039527,120]
[423696898,1780316971000,-1029.11994621,0.00039527,120]
[423696891,1780316971000,-1029.1,0.00039527,120]
[423696895,1780316971000,-1029.1,0.00039527,120]
[423696907,1780316972000,-10000.0,0.00039527,120]
[423696901,1780316972000,-30764.66258755,0.00039527,120]
[423696902,1780316972000,-5288.522162,0.00039527,120]
[423696903,1780316972000,-20874.987999,0.00039527,120]
[423696904,1780316972000,-5812.27030675,0.00039527,120]
[423696906,1780316972000,-10000.0,0.00039527,120]
[423696905,1780316972000,-10000.0,0.00039527,120]
[423696908,1780316972000,-500.0,0.00039527,120]
[423696900,1780316972000,-25544.54491784,0.00039527,120]
[423696910,1780316972000,-500.0,0.00039527,120]
[423696916,1780316972000,-50000.0,0.00039527,55]
[423696917,1780316972000,-50000.0,0.00039527,56]
[423696915,1780316972000,-50000.0,0.00039527,54]
[423696909,1780316972000,-500.0,0.00039527,120]
[423696913,1780316972000,-500.0,0.00039527,120]
[423696912,1780316972000,-500.0,0.00039527,120]
[423696911,1780316972000,-500.0,0.00039527,120]
[423696914,1780316972000,-178.31335004,0.00039527,120]
[423696924,1780316973000,-208.0,0.00039527,120]
[423696919,1780316973000,-1124.0,0.00039527,30]
[423696920,1780316973000,-50000.0,0.00039527,57]
[423696921,1780316973000,-100000.0,0.00039527,30]
[423696923,1780316973000,-500.0,0.00039527,120]
[423696922,1780316973000,-500.0,0.00039527,120]
[423696925,1780316973000,-1000.0,0.00039527,30]
[423696918,1780316973000,-1124.0,0.00039527,30]
[423696926,1780316973000,-150651.10166908,0.00039527,120]
[423696928,1780316973000,-500.0,0.00039527,120]
[423696929,1780316973000,-564.90956719,0.00039527,120]
[423696930,1780316973000,-191.17647059,0.00039527,120]
[423696932,1780316973000,-500.0,0.00039527,120]
[423696931,1780316973000,-500.0,0.00039527,120]
[423696934,1780316973000,-38412.44,0.00039527,30]
[423696933,1780316973000,-546.39760168,0.00039527,120]
[423696927,1780316973000,-500.0,0.00039527,120]
[423696936,1780316974000,-500.0,0.00039527,120]
[423696935,1780316974000,-453.0,0.00039527,120]
[423696937,1780316974000,-500.0,0.00039527,120]